Cogmind - Beta 10.2 @@@ ROGUE MODE // 2020.12.12 @ 03:28:58 // Halloween2020/ForbiddenLore Player: Runia Result: Destroyed by S-43 Plague with Heavy Machine Gun Performance ------------- Evolutions (8) 4000 Regions Visited (15) 3000 Robots Destroyed (140) 700 Value Destroyed (5767) 5767 Prototype IDs (22) 440 Alien Tech Used (0) 0 Bonus (3265) 3265 TOTAL SCORE: 17172 Bonus ------- High Alert Combat Kills 425 Follower Combat Kills 140 Entered Garrisons 200 Scanned by Researcher 500 Acquired SGEMP 2000 Cogmind --------- Core Integrity 0/1450 Matter 97/300 Energy 99/100 System Corruption 0% Temperature Cool (0) Movement Core (50) Location -2/Research Parts ------- > --- POWER (2) -------- (None) > --- PROPULSION (7) --- (None) > --- UTILITY (11) ----- (None) > --- WEAPON (3) ------- (None) > --- INVENTORY (4) ---- SGEMP Prototype Peak State ------------ > --- POWER ------------ Light Antimatter Reactor Compact Particle Reactor > --- PROPULSION ------- Advanced Heavy Treads Centrium Heavy Treads Experimental Myomer Leg Centrium Wheel > --- UTILITY ---------- Experimental Power Amplifier Advanced Heat Sink Large Storage Unit High-capacity Storage Unit Experimental Energy Well Spectral Analyzer Advanced Signal Interpreter Experimental Core Analyzer Advanced Armor Integrity Analyzer Improved Transmission Jammer > --- WEAPON ----------- Gamma Rifle Improved Potential Cannon > --- INVENTORY -------- Compact Particle Reactor Matter Compressor Weapon Cycler Experimental Core Shielding Heavy Armor Plating Experimental Thermal Shield Improved Shield Generator Fusion Bomb Launcher Fusion Bomb Launcher Scythe SGEMP Prototype [Rating: 169] Favorites ----------- Power Antimatter Reactor Engine Improved Deuterium Engine Power Core Neutrino Core Reactor Antimatter Reactor Propulsion Armored Huge Wheel Treads Armored Treads Leg Myomer Leg Wheel Armored Huge Wheel Flight Unit Field Propulsion Array Utility Large Storage Unit Device Advanced Sensor Array Storage Large Storage Unit Processor Advanced Signal Interpreter Hackware Ghost Barrier Protection Improved Light Armor Plating Weapon Heavy Assault Rifle Energy Gun Wave Gun Energy Cannon Ion Cannon Ballistic Gun Heavy Assault Rifle Ballistic Cannon Mass Driver Launcher Fusion Bomb Launcher Special Weapon Improved Plasma Cutter Slashing Weapon Scythe Build | -11 -10 -9 -8 -7 -7 -6 -5 -4 -4 -4 -4 -4 -3 -3 -2 ------- Run | Scr Mat Mat Mat Fac Sto Fac Fac Fac Gar Fac Upp Upp Res Tes Res Slots Evolved 16 | . . 2 2 2 . 2 2 2 . . . . 2 . 2 Power 1 | . . . . . . . 1 . . . . . . . . Propulsion 5 | . . 1 . 1 . 1 . . . . . . 1 . 1 Utility 9 | . . 1 1 1 . 1 1 2 . . . . 1 . 1 Weapon 1 | . . . 1 . . . . . . . . . . . . Parts Attached 248 | 2 9 6 44 14 24 21 20 6 3 10 7 2 12 65 3 Power 15 | . 1 . 2 . 2 2 2 1 . . . . 1 4 . Engine 8 | . 1 . 2 . 1 2 1 . . . . . . 1 . Core 3 | . . . . . 1 . 1 . . . . . 1 . . Reactor 4 | . . . . . . . . 1 . . . . . 3 . Propulsion 42 | 2 2 2 10 3 6 2 . . 3 3 . . 3 4 2 Treads 22 | 1 1 2 8 2 2 1 . . . 2 . . 2 1 . Leg 6 | . . . 1 . . . . . 2 . . . 1 2 . Wheel 12 | 1 1 . 1 1 4 1 . . 1 1 . . . 1 . Hover . | . . . . . . . . . . . . . . . . Flight 2 | . . . . . . . . . . . . . . . 2 Utility 87 | . 1 2 10 3 3 12 9 2 . 1 2 1 7 34 . Device 56 | . 1 1 3 3 2 9 6 2 . . 2 1 4 22 . Storage 14 | . . 1 4 . . . 1 . . 1 . . 1 6 . Processor 7 | . . . 1 . . . 2 . . . . . 2 2 . Hackware 3 | . . . 1 . . 1 . . . . . . . 1 . Protection 7 | . . . 1 . 1 2 . . . . . . . 3 . Artifact . | . . . . . . . . . . . . . . . . Weapon 104 | . 5 2 22 8 13 5 9 3 . 6 5 1 1 23 1 Energy Gun 25 | . 1 . 3 5 3 . . 1 . 2 . . 1 9 . Energy Cannon 12 | . 2 1 3 . 2 1 . . . . . . . 2 1 Ballistic Gun 24 | . 1 1 10 1 5 3 . 1 . . . 1 . 1 . Ballistic Cannon 1 | . . . . . . . . . . . . . . 1 . Launcher 19 | . 1 . 5 . 3 . . . . 3 3 . . 4 . Special Weapon 8 | . . . . . . . 8 . . . . . . . . Impact Weapon . | . . . . . . . . . . . . . . . . Slashing Weapon 15 | . . . 1 2 . 1 1 1 . 1 2 . . 6 . Piercing Weapon . | . . . . . . . . . . . . . . . . Special Melee Weapon . | . . . . . . . . . . . . . . . . Unidentified Prototypes 22 | . . . 1 . 1 . . . . . . . 2 18 . Parts Lost 79 | . 2 2 9 3 21 . 2 . 5 . . . 4 26 5 Power 8 | . . . 1 . 2 . . . . . . . 1 4 . Propulsion 25 | . 1 . 4 1 7 . . . 3 . . . . 6 3 Utility 14 | . . . 1 1 3 . . . 1 . . . 2 5 1 Weapon 32 | . 1 2 3 1 9 . 2 . 1 . . . 1 11 1 Highest Loss Streak 14 | . 2 2 7 2 9 . 2 . 5 . . . 2 14 2 Average Slot Usage (%) 87 | . 85 96 98 96 87 84 87 89 83 93 94 94 90 82 17 Engine 4 | . 13 11 9 7 5 5 7 1 . . . . . . . Core 1 | . . . . . . . 2 5 5 5 5 5 4 . . Reactor 2 | . . . . . . . . 3 5 5 5 5 4 7 . Treads 11 | . 14 22 21 20 12 10 5 5 4 4 10 10 5 8 . Leg 1 | . . . . . . . . . 3 5 . . 4 3 . Wheel 7 | . 13 11 4 6 8 7 11 10 7 9 10 10 8 3 . Device 16 | . 2 12 14 12 13 21 20 26 22 21 22 26 24 16 . Storage 12 | . 14 20 12 15 15 13 11 10 10 15 13 10 11 10 . Processor 7 | . . . 2 7 7 . 7 10 10 10 10 10 9 16 10 Protection 1 | . . . 4 . . 3 . . . . . . . . . Energy Gun 3 | . 8 . 2 4 7 . . 1 1 7 5 5 6 4 . Energy Cannon 2 | . 3 11 5 . 1 3 . . . . . . . . . Ballistic Gun 8 | . 13 7 17 15 10 14 1 1 5 5 5 10 6 3 . Special Weapon 1 | . . . . . . . 15 9 . . . . . . . Naked Turns 34 | . . . . . . . . . . . . . . . 34 Heaviest Build 112 | 10 15 18 49 52 63 69 78 81 81 87 93 85 90 112 13 Greatest Support 150 | 10 10 10 63 62 62 56 56 56 56 44 44 44 44 150 23 Greatest Overweight (x) 6 | . 1 1 4 5 6 2 1 1 4 2 2 1 5 6 4 Average Overweight (x) 1 | . . 1 1 4 2 1 1 1 1 1 1 1 1 4 . Largest Inventory Capacity 18 | 6 6 6 16 16 16 16 16 16 16 16 16 16 16 18 4 Average Capacity 14 | 6 6 6 10 16 16 16 16 16 16 16 16 16 16 17 4 Most Carried 18 | 6 6 6 14 16 16 16 16 16 14 12 14 14 16 18 4 Average Carried 12 | 5 5 4 9 15 12 15 15 14 11 10 13 14 14 14 2 Final Capacity 16 | 6 6 6 16 16 16 16 16 16 16 16 16 16 16 4 4 Final Carried 16 | 3 6 6 14 16 13 16 14 14 10 12 14 14 15 4 2 Class Distribution -------------------- 16% | Gunner 16% | Skirmisher 15% | Mutant 7% | Scavenger-Mutant 7% | Scavenger-Gunner 7% | Scavenger-Skirmisher 7% | Scavenger-Tank 6% | Assassin 5% | Infiltrator-Skirmisher 4% | Hacker-Mutant 3% | Infiltrator-Assassin Dominant Class ---------------- Mutant | -10/Materials Mutant | -9/Materials Scavenger-Tank | -8/Materials Skirmisher | -7/Factory Gunner | -7/Storage Gunner | -6/Factory Skirmisher | -5/Factory Infiltrator-Assassin | -4/Factory Assassin | -4/Garrison Assassin | -4/Factory Assassin | -4/Upper Caves Skirmisher | -4/Upper Caves Skirmisher | -3/Research Scavenger-Mutant | -3/Testing Hacker-Mutant | -2/Research Resources | -11 -10 -9 -8 -7 -7 -6 -5 -4 -4 -4 -4 -4 -3 -3 -2 ----------- Run | Scr Mat Mat Mat Fac Sto Fac Fac Fac Gar Fac Upp Upp Res Tes Res Matter Collected 4587 | 200 78 206 1118 178 630 435 365 . . . 463 . 338 576 . Remotely . | . . . . . . . . . . . . . . . . Salvage Created 5331 | . 214 108 1386 265 1275 174 250 . . 44 161 . 207 1247 . Parts 243 | . 13 3 82 8 54 8 18 . . 5 2 . 6 44 . Haulers Intercepted 1 | . . . 1 . . . . . . . . . . . . Recyclers Shooed 1 | . . . . . 1 . . . . . . . . . . Parts Field Recycled . | . . . . . . . . . . . . . . . . Retrieved Matter . | . . . . . . . . . . . . . . . . Parts Self-Destructed 2 | . . . . . . . . . . . 2 . . . . Prevented . | . . . . . . . . . . . . . . . . Kills | -11 -10 -9 -8 -7 -7 -6 -5 -4 -4 -4 -4 -4 -3 -3 -2 ------- Run | Scr Mat Mat Mat Fac Sto Fac Fac Fac Gar Fac Upp Upp Res Tes Res Combat Hostiles Destroyed 103 | . 7 2 29 5 24 4 3 . . 3 3 . 2 21 . Guns 40 | . 3 . 13 5 12 1 . . . . . . 2 4 . Cannons 17 | . 1 2 5 . 1 3 3 . . . . . . 2 . AOE 45 | . 3 . 11 . 11 . . . . 3 3 . . 14 . Classes Destroyed 18 | . 4 1 4 2 4 . . . . . . . . 3 . Worker 15 | . 1 . 5 . 5 . 1 . . . . . . 3 . Builder 4 | . . . 2 . . . 1 . . . . . . 1 . Hauler 1 | . . . 1 . . . . . . . . . . . . Recycler 6 | . . . 3 . 1 . . . . . . . . 2 . Mechanic 2 | . . . 1 . . . . . . . . . . 1 . Operator 4 | . 1 . 3 . . . . . . . . . . . . Watcher 1 | . . . . . 1 . . . . . . . . . . Swarmer 17 | . 3 . 10 1 . . . . . 3 . . . . . Grunt 49 | . 4 1 13 . 17 . 1 . . . 3 . . 10 . Brawler 3 | . . . . 2 1 . . . . . . . . . . Duelist 1 | . . . . . 1 . . . . . . . . . . Protector 1 | . . . . . 1 . . . . . . . . . . Researcher 4 | . . . . . . . . . . . . . . 4 . Sentry 15 | . . 1 6 1 3 2 . . . . . . 2 . . Hunter 5 | . . . . . 1 . . . . . . . . 4 . Programmer 9 | . . . . 1 . 2 2 . . . . . . 4 . Striker 2 | . . . . . . . . . . . . . . 2 . Alpha 7 1 | . . . . . . . . . . . . . . 1 . Best Kill Streak 12 | . 5 2 10 3 12 1 2 . . 3 3 . 1 10 . Combat Bots Only 10 | . 3 2 8 3 10 1 2 . . 3 3 . 1 5 . Max Kills in Single Turn 5 | . 2 1 3 1 5 1 1 . . 3 2 . 1 4 . Gunslinging 1 | . . . . . 1 . . . . . . . . . . Exploded 4 | . 2 . 2 . 4 . . . . 3 2 . . 2 . Melee . | . . . . . . . . . . . . . . . . Uniques/NPCs Destroyed . | . . . . . . . . . . . . . . . . Combat | -11 -10 -9 -8 -7 -7 -6 -5 -4 -4 -4 -4 -4 -3 -3 -2 -------- Run | Scr Mat Mat Mat Fac Sto Fac Fac Fac Gar Fac Upp Upp Res Tes Res Damage Taken 16232 | . 393 154 1790 836 2658 586 492 27 787 240 121 . 460 5864 1824 Core 3364 | . 60 18 175 101 345 129 39 . 17 12 . . 23 982 1463 Absorbed by Shields 424 | . . . 13 . . . . . . . . . . 411 . Core Remaining (%) 74 | 100 76 95 68 . 36 84 96 . . . . 97 . 22 . Volleys Fired 291 | . 28 11 59 22 58 19 11 . . 2 6 . 10 61 4 Largest 3 | . 2 2 3 3 3 3 3 . . 1 1 . 3 3 1 Hottest 221 | . 80 80 148 126 138 90 60 . . 43 49 . 194 221 120 Shots Fired 651 | . 50 15 151 64 150 57 31 . . 2 6 . 28 93 4 Gun 473 | . 42 5 104 64 132 39 . . . . . . 28 59 . Cannon 97 | . 4 10 34 . 12 18 . . . . . . . 15 4 Launcher 50 | . 4 . 13 . 6 . . . . 2 6 . . 19 . Special 31 | . . . . . . . 31 . . . . . . . . Kinetic 325 | . 24 5 98 44 85 39 . . . . . . 12 18 . Thermal 222 | . 22 10 40 20 15 18 31 . . . . . 16 46 4 Explosive 47 | . 4 . 13 . 4 . . . . 1 6 . . 19 . Electromagnetic 57 | . . . . . 46 . . . . 1 . . . 10 . Robot Hit Streak 22 | . 5 7 14 22 18 6 6 . . . 2 . 16 18 6 Robot Miss Streak 4 | . 2 2 3 4 3 3 3 . . . 1 . 1 3 . Penetration Max 1 | . . . . . . . . . . . . . 1 1 . Secondary Targets 5 | . . . 1 1 3 . . . . . . . . . . Max Gunslinging Chain 1 | . . . 1 1 1 . . . . . . . . . . Shots Hit Robots 447 | . 27 11 93 51 113 35 17 . . . 2 . 25 69 4 Core Hits 298 | . 16 5 77 15 75 9 6 . . 4 7 . 8 74 2 Critical Hits 13 | . . . . . 1 1 5 . . . . . 2 4 . Critical Kills 5 | . . . . . 1 . 3 . . . . . . 1 . Critical Parts Destroyed 7 | . . . . . . 1 2 . . . . . 2 2 . Melee Attacks 38 | . . . 3 4 . 1 1 6 . 3 . . . 20 . Impact . | . . . . . . . . . . . . . . . . Slashing 38 | . . . 3 4 . 1 1 6 . 3 . . . 20 . Piercing . | . . . . . . . . . . . . . . . . Sneak Attacks . | . . . . . . . . . . . . . . . . Combat Hostiles . | . . . . . . . . . . . . . . . . Follow-up Attacks . | . . . . . . . . . . . . . . . . Damage Inflicted 19537 | . 434 174 3082 844 3373 913 329 . . 155 497 . 622 8945 169 Guns 5936 | . 222 34 918 844 1717 525 . . . . . . 622 1054 . Cannons 3195 | . 52 140 634 . 210 388 . . . . . . . 1602 169 Explosions 9443 | . 160 . 1530 . 1446 . . . . 155 497 . . 5655 . Melee 618 | . . . . . . . . . . . . . . 618 . Ramming 16 | . . . . . . . . . . . . . . 16 . Kinetic 3656 | . 102 34 832 492 1099 525 . . . . . . 309 263 . Thermal 6930 | . 172 140 720 352 629 388 329 . . . . . 313 3718 169 Explosive 7294 | . 160 . 1530 . 781 . . . . 131 497 . . 4195 . Electromagnetic 1023 | . . . . . 864 . . . . 24 . . . 135 . Impact . | . . . . . . . . . . . . . . . . Slashing 618 | . . . . . . . . . . . . . . 618 . Piercing . | . . . . . . . . . . . . . . . . Highest Corruption 22 | . . . . 7 7 1 6 . . . . . . 22 . Average Corruption 4 | . . . . 4 7 1 2 . . . . . . 6 . Corruption Purged . | . . . . . . . . . . . . . . . . Effects 71 | . . . . 13 31 2 12 . . . . . . 13 . Message Errors 16 | . . . . 4 5 1 2 . . . . . . 4 . Matter Fused 15 | . . . . 4 6 . 1 . . . . . . 4 . Heat Flow Errors 4 | . . . . 1 1 . 2 . . . . . . . . Energy Discharges 3 | . . . . . 1 . 2 . . . . . . . . Parts Rejected 1 | . . . . . . . . . . . . . . 1 . Data Loss (minor) 7 | . . . . . 4 1 2 . . . . . . . . Data Loss (major) 2 | . . . . . . . 1 . . . . . . 1 . Misfires 1 | . . . . . 1 . . . . . . . . . . Alerts 1 | . . . . . . . . . . . . . . 1 . Misdirections 2 | . . . . . . . . . . . . . . 2 . Targeting Errors 15 | . . . . 4 9 . 2 . . . . . . . . Weapon Failures 4 | . . . . . 4 . . . . . . . . . . Overload Shots . | . . . . . . . . . . . . . . . . Overflow Damage 874 | . . . 80 . 15 1 3 . . . 16 . . 759 . Projectiles 193 | . . . 6 . . 1 3 . . . . . . 183 . Explosions 561 | . . . 74 . 15 . . . . . 16 . . 456 . Melee 120 | . . . . . . . . . . . . . . 120 . Knockbacks . | . . . . . . . . . . . . . . . . Impact . | . . . . . . . . . . . . . . . . Kinetic . | . . . . . . . . . . . . . . . . Secondary . | . . . . . . . . . . . . . . . . Self-Inflicted Damage 1358 | . . . 49 . 146 . . . . . . . . 1163 . Shots 22 | . . . 2 . 5 . . . . . . . . 15 . Rammed 2 | . . . . . . . . . . . . . . 2 . Targets Rammed 2 | . . . . . . . . . . . . . . 2 . Kicked . | . . . . . . . . . . . . . . . . Crushed . | . . . . . . . . . . . . . . . . Highest Temperature 443 | . 120 6 108 374 277 176 240 . . . . . 267 443 53 Average Temperature 84 | . 44 2 29 121 81 76 116 . . . . . 101 125 26 Received Heat Transfer 3451 | . 180 72 810 84 1095 90 117 . 144 27 30 . 63 595 144 Effects 3 | . . . . . 1 . . . . . . . . 2 . Shutdowns 2 | . . . . . . . . . . . . . . 2 . Energy Bleed 1 | . . . . . 1 . . . . . . . . . . Siege Activations . | . . . . . . . . . . . . . . . . Robots Corrupted . | . . . . . . . . . . . . . . . . Combat Hostiles . | . . . . . . . . . . . . . . . . Parts Fried 1 | . . . . . 1 . . . . . . . . . . Impact Corruptions . | . . . . . . . . . . . . . . . . Robots Melted 1 | . . . . . . . . . . . . . . 1 . Combat Hostiles 1 | . . . . . . . . . . . . . . 1 . Parts Melted 18 | . . 1 . 2 . 3 8 . . . . . 3 1 . Heat Transferred 8133 | . 421 296 1147 744 994 555 666 . . . . . 481 2681 148 Parts Sabotaged . | . . . . . . . . . . . . . . . . Parts Stolen . | . . . . . . . . . . . . . . . . Parts Stripped . | . . . . . . . . . . . . . . . . Power Chain Reactions 2 | . . . . . 2 . . . . . . . . . . Missiles Intercepted . | . . . . . . . . . . . . . . . . Alert | -11 -10 -9 -8 -7 -7 -6 -5 -4 -4 -4 -4 -4 -3 -3 -2 ------- Run | Scr Mat Mat Mat Fac Sto Fac Fac Fac Gar Fac Upp Upp Res Tes Res Peak Influence 835 | . 234 198 650 213 552 385 187 97 107 176 . . 166 730 835 Initial 388 | . . 98 83 154 42 250 127 43 77 53 . . 97 8 388 Average 227 | . 85 159 403 147 330 247 116 62 87 124 . . 98 198 478 Maximum Alert Level 3 | . 1 . 2 1 2 1 . . . . . . . 3 3 Low Security (%) 57 | 100 86 100 11 62 26 27 100 100 100 100 . . 100 69 . Level 1 24 | . 13 . 31 37 39 72 . . . . . . . 13 49 Level 2 17 | . . . 57 . 34 . . . . . . . . 14 40 Level 3 1 | . . . . . . . . . . . . . . 3 9 Level 4 . | . . . . . . . . . . . . . . . . Level 5 . | . . . . . . . . . . . . . . . . High Security . | . . . . . . . . . . . . . . . . Max Security . | . . . . . . . . . . . . . . . . Squads Dispatched 29 | . 2 1 4 3 6 2 1 1 . . . . . 7 2 Investigation 1 | . . . . 1 . . . . . . . . . . . Extermination 6 | . . . . . . 2 . 1 . . . . . 2 1 Reinforcement 19 | . 2 1 4 1 4 . 1 . . . . . . 5 1 Assault 3 | . . . . 1 2 . . . . . . . . . . Garrison . | . . . . . . . . . . . . . . . . Intercept . | . . . . . . . . . . . . . . . . Construction Impeded 3 | . . . 1 . 1 . . . . . . . . 1 . Haulers Reinforced 2 | . . . . . 1 . . . . . . . . 1 . Stealth | -11 -10 -9 -8 -7 -7 -6 -5 -4 -4 -4 -4 -4 -3 -3 -2 --------- Run | Scr Mat Mat Mat Fac Sto Fac Fac Fac Gar Fac Upp Upp Res Tes Res Distress Signals 15 | . 1 1 3 1 1 . . . . . . . 1 6 1 Communications Jammed 68 | . . . 30 . 5 . . . . . . . 1 32 . Distress Signals 68 | . . . 30 . 5 . . . . . . . 1 32 . Times Spotted 248 | . 10 6 61 7 46 9 6 4 6 2 2 . 6 46 37 Peak Tracking Total 17 | . 5 4 10 3 10 4 3 6 7 3 3 . 2 10 17 Tactical Retreats 28 | . . 1 10 . 4 . 1 . 2 . . . . 3 7 Traps | -11 -10 -9 -8 -7 -7 -6 -5 -4 -4 -4 -4 -4 -3 -3 -2 ------- Run | Scr Mat Mat Mat Fac Sto Fac Fac Fac Gar Fac Upp Upp Res Tes Res Traps Triggered 12 | . . 1 . 3 3 . 2 . 1 . . . . . 2 Indirectly . | . . . . . . . . . . . . . . . . Trap Hack Attempts . | . . . . . . . . . . . . . . . . Triggered . | . . . . . . . . . . . . . . . . Disarmed . | . . . . . . . . . . . . . . . . Reprogrammed . | . . . . . . . . . . . . . . . . Reused . | . . . . . . . . . . . . . . . . Traps Extracted . | . . . . . . . . . . . . . . . . Installed . | . . . . . . . . . . . . . . . . Triggered . | . . . . . . . . . . . . . . . . Machines | -11 -10 -9 -8 -7 -7 -6 -5 -4 -4 -4 -4 -4 -3 -3 -2 ---------- Run | Scr Mat Mat Mat Fac Sto Fac Fac Fac Gar Fac Upp Upp Res Tes Res Machines Disabled 15 | . . . 2 . 2 . . . . . . . . 11 . Max in Single Turn 1 | . . . 1 . 1 . . . . . . . . 1 . Garrison Access 3 | . . . . 1 1 . . 1 . . . . . . . Machines Sabotaged . | . . . . . . . . . . . . . . . . Garrisons Compromised . | . . . . . . . . . . . . . . . . Overloaded Fab Kills . | . . . . . . . . . . . . . . . . Fab Network Shutdowns . | . . . . . . . . . . . . . . . . Hacking | -11 -10 -9 -8 -7 -7 -6 -5 -4 -4 -4 -4 -4 -3 -3 -2 --------- Run | Scr Mat Mat Mat Fac Sto Fac Fac Fac Gar Fac Upp Upp Res Tes Res Machines Accessed 31 | . 2 . 4 5 2 4 4 4 . . . . 2 3 1 Terminals 21 | . 2 . 4 1 1 4 2 2 . . . . 1 3 1 Fabricators . | . . . . . . . . . . . . . . . . Repair Stations . | . . . . . . . . . . . . . . . . Recycling Units 2 | . . . . 2 . . . . . . . . . . . Scanalyzers 1 | . . . . . . . . . . . . . 1 . . Garrison Access 7 | . . . . 2 1 . 2 2 . . . . . . . Total Hacks 78 | . 7 . 17 13 4 8 7 10 . . . . 2 5 5 Successful 33 | . 3 . 7 7 2 1 1 5 . . . . 1 3 3 Failed 44 | . 3 . 10 6 2 7 6 5 . . . . 1 2 2 Catastrophic 10 | . . . 2 2 . 2 2 . . . . . . 2 . Database Lockouts 1 | . 1 . . . . . . . . . . . . . . Manual 29 | . 7 . 10 5 . . 2 . . . . . 1 2 2 Terminals 59 | . 7 . 17 4 2 8 4 6 . . . . 1 5 5 Fabricators . | . . . . . . . . . . . . . . . . Repair Stations . | . . . . . . . . . . . . . . . . Recycling Units 6 | . . . . 6 . . . . . . . . . . . Scanalyzers 1 | . . . . . . . . . . . . . 1 . . Garrison Access 12 | . . . . 3 2 . 3 4 . . . . . . . Terminal Hacks 23 | . 3 . 7 1 1 1 1 3 . . . . . 3 3 Record 2 | . . . . . . . . . . . . . . 2 . Part Schematic 2 | . 2 . . . . . . . . . . . . . . Robot Analysis 1 | . . . . . . . . . . . . . . . 1 Level Access Points 2 | . . . 1 . . . . . . . . . . 1 . Emergency Access Points 1 | . . . . . . . . . . . . . . . 1 Terminal Index 1 | . . . . . . . . 1 . . . . . . . Alert Level 5 | . . . 2 1 . . 1 . . . . . . . 1 Unreport Threat 3 | . . . 3 . . . . . . . . . . . . Locate Traps 1 | . . . . . . . . 1 . . . . . . . Zone Layout 5 | . 1 . 1 . 1 1 . 1 . . . . . . . Fabricator Hacks . | . . . . . . . . . . . . . . . . Repair Station Hacks . | . . . . . . . . . . . . . . . . Recycling Unit Hacks 4 | . . . . 4 . . . . . . . . . . . Process 1 | . . . . 1 . . . . . . . . . . . Report Inventory 2 | . . . . 2 . . . . . . . . . . . Retrieve Matter 1 | . . . . 1 . . . . . . . . . . . Scanalyzer . | . . . . . . . . . . . . . . . . Garrison Access Hacks 3 | . . . . . 1 . . 2 . . . . . . . Unlock Access 1 | . . . . . . . . 1 . . . . . . . Seal Access 2 | . . . . . 1 . . 1 . . . . . . . Unauthorized Hacks 3 | . . . . 2 . . . . . . . . 1 . . Terminals 1 | . . . . . . . . . . . . . 1 . . Assimilate 1 | . . . . . . . . . . . . . 1 . . Fabricators . | . . . . . . . . . . . . . . . . Repair Stations . | . . . . . . . . . . . . . . . . Recycling Units . | . . . . . . . . . . . . . . . . Scanalyzers . | . . . . . . . . . . . . . . . . Garrison Access 2 | . . . . 2 . . . . . . . . . . . Decoy 1 | . . . . 1 . . . . . . . . . . . Reprogram 1 | . . . . 1 . . . . . . . . . . . Data Cores Recovered 1 | . . . 1 . . . . . . . . . . . . Used . | . . . . . . . . . . . . . . . . Hacking Detections 28 | . 1 . 4 5 1 4 4 3 . . . . 2 3 1 Full Trace Events 1 | . . . . 1 . . . . . . . . . . . Feedback Events . | . . . . . . . . . . . . . . . . Feedback Blocked . | . . . . . . . . . . . . . . . . Robot Schematics Acquired . | . . . . . . . . . . . . . . . . Robots Built . | . . . . . . . . . . . . . . . . Matter . | . . . . . . . . . . . . . . . . Time . | . . . . . . . . . . . . . . . . Total Robot Build Rating . | . . . . . . . . . . . . . . . . Part Schematics Acquired 2 | . 2 . . . . . . . . . . . . . . Parts Built . | . . . . . . . . . . . . . . . . Matter . | . . . . . . . . . . . . . . . . Time . | . . . . . . . . . . . . . . . . Total Part Build Rating . | . . . . . . . . . . . . . . . . Parts Repaired . | . . . . . . . . . . . . . . . . Time . | . . . . . . . . . . . . . . . . Parts Recycled . | . . . . . . . . . . . . . . . . Recycled Matter 1 | . . . . 1 . . . . . . . . . . . Retrieved Matter 1 | . . . . 1 . . . . . . . . . . . Retrieved Components . | . . . . . . . . . . . . . . . . Parts Scanalyzed . | . . . . . . . . . . . . . . . . Part Schematics Acquired . | . . . . . . . . . . . . . . . . Parts Damaged . | . . . . . . . . . . . . . . . . Bothacking | -11 -10 -9 -8 -7 -7 -6 -5 -4 -4 -4 -4 -4 -3 -3 -2 ------------ Run | Scr Mat Mat Mat Fac Sto Fac Fac Fac Gar Fac Upp Upp Res Tes Res Used RIF Installer . | . . . . . . . . . . . . . . . . Robots Hacked . | . . . . . . . . . . . . . . . . Non-combat . | . . . . . . . . . . . . . . . . Combat . | . . . . . . . . . . . . . . . . Robot Hacks Applied . | . . . . . . . . . . . . . . . . Relay Couplers Released 5 | . . . . 5 . . . . . . . . . . . Machine Destruction 1 | . . . . 1 . . . . . . . . . . . Programmers 4 | . . . . 4 . . . . . . . . . . . Robots Rewired . | . . . . . . . . . . . . . . . . Allies Hacked . | . . . . . . . . . . . . . . . . Hacks Repelled . | . . . . . . . . . . . . . . . . Allies | -11 -10 -9 -8 -7 -7 -6 -5 -4 -4 -4 -4 -4 -3 -3 -2 -------- Run | Scr Mat Mat Mat Fac Sto Fac Fac Fac Gar Fac Upp Upp Res Tes Res Total Allies 3 | . . . . . 2 . . . . . . . 1 . . Largest Group 2 | . . . . . 2 . . . . . . . 1 1 . Highest-Rated Group 62 | . . . . . 62 . . . . . . . 44 37 . Highest-Rated Ally 44 | . . . . . 31 . . . . . . . 44 37 . Total Orders 6 | . . . . . . . . . . . 1 . 2 3 . EXPLORE 6 | . . . . . . . . . . . 1 . 2 3 . Ally Attacks 36 | . . . . . 36 . . . . . . . . . . Total Damage 503 | . . . . . 503 . . . . . . . . . . Kills 5 | . . . . . 5 . . . . . . . . . . Allies Corrupted . | . . . . . . . . . . . . . . . . Allies Melted . | . . . . . . . . . . . . . . . . Intel | -11 -10 -9 -8 -7 -7 -6 -5 -4 -4 -4 -4 -4 -3 -3 -2 ------- Run | Scr Mat Mat Mat Fac Sto Fac Fac Fac Gar Fac Upp Upp Res Tes Res Robot Analysis Total 1 | . . . . . . . . . . . . . . . 1 Derelict Logs Recovered 1 | . . . . . . . . . . . . 1 . . . Drone Launches 6 | . . . . . . . . . . . 1 . 2 3 . Drone Recoveries 3 | . . . . . . . . . . . 1 . 1 1 . Exploration | -11 -10 -9 -8 -7 -7 -6 -5 -4 -4 -4 -4 -4 -3 -3 -2 ------------- Run | Scr Mat Mat Mat Fac Sto Fac Fac Fac Gar Fac Upp Upp Res Tes Res Turns Passed 7494 | 5 247 209 1256 581 576 763 747 346 87 141 395 33 467 1372 269 Spaces Moved 4846 | 1 159 160 667 382 283 475 546 242 69 103 346 29 309 615 460 Core 185 | . . . . . . . . . . . . . . 53 132 Treads 362 | . . . 256 1 32 . . . 1 . . . . 72 . Legs 7 | . . . . . . . . . . . . . . 7 . Wheels 3977 | 1 159 160 411 381 251 475 546 242 68 103 346 29 309 483 13 Hover . | . . . . . . . . . . . . . . . . Flight 315 | . . . . . . . . . . . . . . . 315 Fastest Speed 40 | 80 80 90 90 120 100 110 110 110 110 105 105 105 105 50 40 Average Speed 110 | 80 88 90 129 121 123 116 110 110 116 106 106 105 110 136 46 Slowest Speed 250 | 80 90 90 190 161 185 120 110 110 250 120 115 105 140 180 250 Overloaded Moves . | . . . . . . . . . . . . . . . . Propulsion Burnouts . | . . . . . . . . . . . . . . . . Robots Hopped 6 | . . . . . . . . . . . . . . . 6 Cave-ins Triggered . | . . . . . . . . . . . . . . . . Exploration Rate (%) 26 | 2 25 16 60 11 66 13 13 9 29 5 54 6 12 79 18 Regions Visited 15 Branch Regions 4 Pre-discovered Areas 1 | . . . . . . . . . . . . 1 . . . Known Exits Taken 8 | . . . 1 . . . 1 1 . 1 1 1 1 1 . Unknown Exits Taken 6 | 1 1 1 . 1 1 1 . . . . . . . . . Scrap Searched 2 | . . . . . . . . . . . 2 . . . . Spaces Dug 20 | . . . 3 4 . 1 1 6 . 3 . . . 2 . Terrain Destroyed 610 | . 20 . 89 4 46 1 1 6 . 17 102 . . 324 . Melee 20 | . . . 3 4 . 1 1 6 . 3 . . . 2 . Projectile 13 | . . . 3 . 3 . . . . . . . . 7 . AOE 577 | . 20 . 83 . 43 . . . . 14 102 . . 315 . Terrain Rammed . | . . . . . . . . . . . . . . . . Walls Destroyed . | . . . . . . . . . . . . . . . . Machines Disabled . | . . . . . . . . . . . . . . . . Actions | -11 -10 -9 -8 -7 -7 -6 -5 -4 -4 -4 -4 -4 -3 -3 -2 --------- Run | Scr Mat Mat Mat Fac Sto Fac Fac Fac Gar Fac Upp Upp Res Tes Res Total 6384 | 5 214 212 939 446 418 654 640 314 75 124 363 30 423 1023 504 Wait 676 | . 6 21 119 2 35 107 46 47 . . 1 . 66 202 24 Move 4821 | . 158 159 666 381 282 474 545 242 68 102 345 28 308 614 449 Hop 5 | . . . . . . . . . . . . . . . 5 Pick Up 153 | . 9 9 27 10 17 18 6 7 . 6 3 . 15 23 3 Fast Attach 31 | . 1 . 7 3 . 2 4 1 . . . . . 13 . Attach 91 | . 3 4 11 3 19 4 4 3 3 3 . . 10 21 3 Detach 2 | . . . . . . . . . . . . . . 2 . Swap 127 | 2 5 2 26 8 5 15 12 2 . 7 7 2 2 32 . Drop 123 | 3 4 6 21 9 2 14 11 6 . 1 1 . 12 32 1 Fire 291 | . 28 11 59 22 58 19 11 . . 2 6 . 10 61 4 Melee 38 | . . . 3 4 . 1 1 6 . 3 . . . 20 . Ram 1 | . . . . . . . . . . . . . . 1 . Kick 1 | . . . . . . . . . . . . . . 1 . Crush . | . . . . . . . . . . . . . . . . Escape Stasis 24 | . . . . 4 . . . . 4 . . . . 1 15 Rewire . | . . . . . . . . . . . . . . . . Trap . | . . . . . . . . . . . . . . . . Miscellaneous . | . . . . . . . . . . . . . . . . Route ------- -11/Scrapyard -10/Materials (discovered 2 exits: [*Mat] / [*Min]) -9/Materials -8/Materials (discovered 3 exits: *Fac x3) -7/Factory -7/Storage -6/Factory -5/Factory -4/Factory -4/Garrison -4/Factory -4/Upper Caves -4/Upper Caves -3/Research -3/Testing -2/Research History --------- Turn | Location | Event 6 | -11/Scrapyard | Discovered new exit (range 0) 6 | -11/Scrapyard | Entered Materials 26 | -10/Materials | Discovered new exit (range 12) 78 | -10/Materials | Central database locked down 82 | -10/Materials | Discovered new exit (range 11) 253 | -10/Materials | Entered another Materials area 253 | -9/Materials | Evolved 2 slots: Propulsion x1, Utility x1 313 | -9/Materials | Build established: Mutant 437 | -9/Materials | Discovered new exit (range 14) 462 | -9/Materials | Entered another Materials area 462 | -8/Materials | Evolved 2 slots: Utility x1, Weapon x1 638 | -8/Materials | Destroyed 8 combat bots 1172 | -8/Materials | Lost 7 parts (1p3n1u2w) 1580 | -8/Materials | Identified exit to Factory 1718 | -8/Materials | Entered Factory 1718 | -7/Factory | Evolved 2 slots: Propulsion x1, Utility x1 1826 | -7/Factory | Build established: Skirmisher 2164 | -7/Factory | Discovered new exit (range 19) 2299 | -7/Factory | Entered Storage 2338 | -7/Storage | Met a pair of Derelict thieves 2439 | -7/Storage | Lost 3 parts (1p1n1u) 2502 | -7/Storage | Destroyed 10 combat bots 2512 | -7/Storage | Lost 9 parts (2n2u5w) 2668 | -7/Storage | Core integrity fell below 50% 2806 | -7/Storage | Lost 3 parts (1p1n1w) 2862 | -7/Storage | Discovered new exit (range 11) 2875 | -7/Storage | Entered Factory 2875 | -6/Factory | Evolved 2 slots: Propulsion x1, Utility x1 3544 | -6/Factory | Build established: Gunner 3635 | -6/Factory | Discovered new exit (range 4) 3638 | -6/Factory | Entered another Factory area 3638 | -5/Factory | Evolved 2 slots: Power x1, Utility x1 3947 | -5/Factory | Build established: Infiltrator-Skirmisher 4329 | -5/Factory | Discovered new exit (range 24) 4362 | -5/Factory | Identified exit to Factory 4385 | -5/Factory | Entered another Factory area 4385 | -4/Factory | Evolved 2 slots: Utility x2 4731 | -4/Factory | Identified exit to Garrison 4731 | -4/Factory | Entered Garrison 4758 | -4/Garrison | Spotted B-86 Titan 4762 | -4/Garrison | Triggered checkpoint 4768 | -4/Garrison | Triggered checkpoint 4781 | -4/Garrison | Triggered checkpoint 4806 | -4/Garrison | Discovered new exit (range 10) 4816 | -4/Garrison | Identified exit to Factory 4818 | -4/Garrison | Entered Factory 4835 | -4/Factory | Lost 5 parts (3n1u1w) 4912 | -4/Factory | Discovered new exit (range 10) 4958 | -4/Factory | Identified exit to Upper Caves 4959 | -4/Factory | Entered Upper Caves 5183 | -4/Upper Caves | Encountered a Warlord checkpoint 5279 | -4/Upper Caves | Discovered new exit (range 20) 5353 | -4/Upper Caves | Identified exit to Upper Caves 5354 | -4/Upper Caves | Entered another Upper Caves area 5356 | -4/Upper Caves | Discovered new exit (range 22) 5373 | -4/Upper Caves | Learned location of Armory (-4) 5386 | -4/Upper Caves | Identified exit to Research 5387 | -4/Upper Caves | Entered Research 5387 | -3/Research | Evolved 2 slots: Propulsion x1, Utility x1 5445 | -3/Research | Found Prototype Processor 5446 | -3/Research | Identified Exp. Melee Analysis Suite 5460 | -3/Research | Found Fusion Bomb Launcher 5650 | -3/Research | Build established: Skirmisher 5788 | -3/Research | Found Fusion Bomb Launcher 5806 | -3/Research | Discovered new exit (range 13) 5852 | -3/Research | Identified exit to Testing 5854 | -3/Research | Entered Testing 5854 | -3/Testing | Accompanied by 1 ally 5911 | -3/Testing | Found Prototype Processor 5911 | -3/Testing | Identified Exp. Core Analyzer 5992 | -3/Testing | Identified exit to Research 6263 | -3/Testing | Found Prototype Device 6263 | -3/Testing | Identified Exp. Thermal Shield 6355 | -3/Testing | Found Prototype Processor 6355 | -3/Testing | Identified Spectral Analyzer 6485 | -3/Testing | Spotted Striker 6591 | -3/Testing | Spotted Striker 6628 | -3/Testing | Found Prototype Energy Cannon 6669 | -3/Testing | Spotted Alpha 7 6713 | -3/Testing | Destroyed Striker 6716 | -3/Testing | Scanned by Researcher 6719 | -3/Testing | Destroyed Striker 6742 | -3/Testing | Identified Imp. Potential Cannon 6751 | -3/Testing | Destroyed Alpha 7 6772 | -3/Testing | Lost 5 parts (1p1n1u2w) 6788 | -3/Testing | Stole the SGEMP Prototype 7039 | -3/Testing | Lost 3 parts (2p1w) 7069 | -3/Testing | Found Prototype Energy Gun 7070 | -3/Testing | Identified Tachyon Dispersion Ray 7071 | -3/Testing | System corruption reached 10% 7142 | -3/Testing | Core integrity fell below 50% 7151 | -3/Testing | Found Prototype Hackware 7152 | -3/Testing | Identified Ghost Barrier 7200 | -3/Testing | Lost 14 parts (1p5n4u4w) 7226 | -3/Testing | Entered Research 7226 | -2/Research | Evolved 2 slots: Propulsion x1, Utility x1 7329 | -2/Research | Spotted B-90 Cyclops 7404 | -2/Research | Spotted B-90 Cyclops 7429 | -2/Research | Build established: Hacker-Mutant 7431 | -2/Research | Spotted B-90 Cyclops 7467 | -2/Research | Core integrity fell below 50% 7479 | -2/Research | Spotted B-90 Cyclops 7482 | -2/Research | Core integrity fell below 20% 7495 | -2/Research | Destroyed by S-43 Plague with Heavy Machine Gun Last Messages --------------- >>Analysis(C-55 Analyst) Downloading analysis... C-55 Analyst Tier: 8 C-series researchers operate labs in which they independently develop and test new technologies. As non-combat units assigned to secure areas, their core is weak against many forms of damage. However, due to the periodic need to operate in high-temperature areas they are somewhat resistant to damage of a thermal nature. The C-55 is also equipped with a stasis beam to contain derelict specimens for study. >>Alert(Check) Current Alert Level: 2-P K-01 Serf destroyed. Field Propulsion Drive destroyed. Triggered Segregator Trap. Arcs of energy rise from the floor. Exp. Core Analyzer blown off. Adv. Signal Interpreter blown off. Ghost Barrier blown off. ALERT: Rogue bot located, Programmers report to Research Zone 7A. Map ----- +----------------------------------------------------+ | ??????????????"" """ +??????????????? | | ??????????????"" """" #??????????????? | | ??????????????"T """" ###########????? | | ??????????????"" """ ????? | | ??????????????"" ???? | | ??????????????## ???? | | ???????????????# ""???? | | ???????????????# """ """ ""???? | | ???????????????# """" """" ""???? | | ???????????????# """" """" ??? | | ???????????????# """ """ ??? | | ???????????????# ??? | | ???????????????# ""???? | | ???????????????# "????? | | ???????????????# "????? | | ???????????????# ????? | | ???????????????# s ????? | | ???????????????# ##### ????? | | ?????????????? #????###+##?????? | | ???????????? #####s######?????????????? | | ???????????? * ?# s #?????????????? | | ??????????? ??# ss #?????????????? | | ???????????w ???# s"""" #?????????????? | | ?????????? ???# s"""" #?????????????? | | ?????????? ## """" #?????????????? | | ?????????? @ """" #?????????????? | | ?????????? ####### s #?????????????? | | ?????????????????????????# ] #?????????????? | | ?????????????????????????###########?????????????? | | ?????????????????????????????????????????????????? | | ?????????????????????????????????????????????????? | | ?????????????????????????????????????????????????? | | ?????????????????????????????????????????????????? | | ?????????????????????????????????????????????????? | | ?????????????????????????????????????????????????? | | | | | | | | | | | | | | | | | | | | | | | | | | | | | | | +----------------------------------------------------+ Best States ------------- Heat Dissipation 84 Energy Generation 55 Energy Capacity 1205 Matter Stores 550 Matter Capacity 550 Sight Range 24 Robot Scan Range 16 Terrain Scan Range 24 Terrain Scan Density 210 Jamming Range 12 Cloak Strength 2 Power Amplification 40 Armor Coverage 600 Resistance: TH 30 Resistance: EX 50 Core Shielding 40 Weapon Cycling 15 Evasion (%) 62 Core Analysis 15 Armor Integrity Analysis 66 Recoil Reduction 6 Kinecelleration 30 Offensive Hacking 10 Defensive Hacking 20 Item Schematics ----------------- Lrg. Storage Unit | -10/Materials | Hacked Wheel | -10/Materials | Hacked Robot Schematics ------------------ None Fabricated ------------ Nothing Alien Tech Used ----------------- None Achievements -------------- None Challenges ------------ None Game ------ Seed AntigravUltimateMantle Manual? 0 Play Time 01:40:11 Cumulative 165.7 hours Start 2020.12.12 @ 01:41:39 End 2020.12.12 @ 03:28:58 Sessions 1 Manual Loads 0 Difficulty Rogue Special Mode Halloween2020/ForbiddenLore Game No. 192 Rogue 192 Adventurer 0 Explorer 0 Win Type - Total 2 Types 2/0/0/0/0/0/0/0/0 Lore% 55 Gallery% 75 Achievement% 55 Wizard Run 0 Options --------- ASCII 0 Keyboard 0 Movement Mouse Keybinds 1 Fullscreen 2 Font 24/Smallcaps Map View 76x50 Tactical HUD 1 Map Filters NONE Filters NONE Steam 1 RUN: df625915-6358-4e3e-96ab-aae104686e53